fUSD/lending_fUSD_20251014
["ID","MTS","AMOUNT","RATE_DAILY","PERIOD"]
[391283579,1760467843058,-500.0,0.00016438,2]
[391283580,1760467843067,-500.0,0.00016438,2]
[391283581,1760467843077,-500.0,0.00016438,2]
[391283582,1760467843087,-588.34,0.00016438,2]
[391283583,1760467843096,-972.18,0.00016438,2]
[391283584,1760467843105,-500.0,0.00016438,2]
[391283585,1760467843115,-997.39,0.00016438,2]
[391283587,1760467843125,-500.0,0.00016438,2]
[391283590,1760467843134,-689.07,0.00016438,2]
[391283591,1760467843143,-500.0,0.00016438,2]
[391283594,1760467843153,-906.83,0.00016438,2]
[391283596,1760467843163,-646.37,0.00016438,2]
[391283598,1760467843172,-500.0,0.00016438,2]
[391283600,1760467843181,-1724.67,0.00016438,2]
[391283602,1760467843191,-500.0,0.00016438,2]
[391283604,1760467843200,-500.0,0.00016438,2]
[391283606,1760467843210,-500.0,0.00016438,2]
[391283608,1760467843219,-1109.4,0.00016438,2]
[391283610,1760467843228,-500.0,0.00016438,2]
[391283612,1760467843238,-500.0,0.00016438,2]
[391283613,1760467843247,-500.0,0.00016438,2]
[391283614,1760467843256,-678.38,0.00016438,2]
[391283615,1760467843266,-517.9041945,0.00016438,2]
[391283616,1760467843279,-500.0,0.00016438,2]
[391283618,1760467843291,-500.0,0.00016438,2]
[391283620,1760467843300,-500.0,0.00016438,2]
[391283622,1760467843310,-1073.42,0.00016438,2]
[391283623,1760467843320,-500.0,0.00016438,2]
[391283624,1760467843329,-500.0,0.00016438,2]
[391283625,1760467843338,-1003.49,0.00016438,2]
[391283626,1760467843348,-500.0,0.00016438,2]
[391283627,1760467843357,-500.0,0.00016438,2]
[391283628,1760467843367,-500.0,0.00016438,2]
[391283629,1760467843381,-500.0,0.00016438,2]
[391283630,1760467843391,-500.0,0.00016438,2]
[391283631,1760467843400,-500.0,0.00016438,2]
[391283632,1760467843410,-1647.08,0.00016438,2]
[391283633,1760467843420,-1769.62,0.00016438,2]
[391283634,1760467843430,-1229.42,0.00016438,2]
[391283635,1760467843440,-838.51,0.00016438,2]
[391283636,1760467843449,-2173.81,0.00016438,2]
[391283637,1760467843459,-500.0,0.00016438,2]
[391283638,1760467843468,-500.0,0.00016438,2]
[391283639,1760467843479,-668.43,0.00016438,2]
[391283640,1760467843490,-500.0,0.00016438,2]
[391283641,1760467843499,-500.0,0.00016438,2]
[391283642,1760467843509,-647.31826619,0.00016438,2]
[391283643,1760467843518,-1291.83,0.00016438,2]
[391283644,1760467843528,-659.65,0.00016438,2]
[391283645,1760467843538,-543.61,0.00016438,2]
[391283646,1760467843547,-500.0,0.00016438,2]
[391283647,1760467843556,-500.0,0.00016438,2]
[391283648,1760467843566,-774.79,0.00016438,2]
[391283649,1760467843575,-500.0,0.00016438,2]
[391283650,1760467843585,-1893.86,0.00016438,2]
[391283651,1760467843595,-516.22,0.00016438,2]
[391283652,1760467843604,-868.45,0.00016438,2]
[391283653,1760467843614,-1134.65,0.00016438,2]
[391283654,1760467843624,-500.0,0.00016438,2]
[391283655,1760467843634,-1321.46,0.00016438,2]
[391283656,1760467843644,-500.0,0.00016438,2]
[391283657,1760467843653,-500.0,0.00016438,2]
[391283658,1760467843664,-500.0,0.00016438,2]
[391283659,1760467843674,-168.49845151,0.00016438,2]
[391283660,1760467843684,-500.0,0.00016438,2]
[391283661,1760467843694,-500.0,0.00016438,2]
[391283662,1760467843704,-500.0,0.00016438,2]
[391283663,1760467843714,-502.74,0.00016438,2]
[391283664,1760467843729,-2712.72,0.00016438,2]
[391283665,1760467843740,-194.83466628,0.00016438,2]
[391283666,1760467843750,-585.87,0.00016438,2]
[391283667,1760467843764,-500.0,0.00016438,2]
[391283668,1760467843774,-500.0,0.00016438,2]
[391283669,1760467843784,-500.0,0.00016438,2]
[391283670,1760467843794,-500.0,0.00016438,2]
[391283671,1760467843804,-500.0,0.00016438,2]
[391283672,1760467843815,-1138.96,0.00016438,2]
[391283673,1760467843824,-636.57,0.00016438,2]
[391283674,1760467843835,-500.0,0.00016438,2]
[391283675,1760467843845,-1138.67,0.00016438,2]
[391283677,1760467843855,-1011.43,0.00016438,2]
[391283678,1760467843865,-500.0,0.00016438,2]
[391283680,1760467843875,-500.0,0.00016438,2]
[391283681,1760467843886,-500.0,0.00016438,2]
[391283682,1760467843896,-500.0,0.00016438,2]
[391283683,1760467843906,-500.0,0.00016438,2]
[391283684,1760467843916,-500.0,0.00016438,2]
[391283685,1760467843926,-500.0,0.00016438,2]
[391283686,1760467843937,-500.0,0.00016438,2]
[391283687,1760467843948,-1122.19,0.00016438,2]
[391283688,1760467843958,-500.0,0.00016438,2]
[391283689,1760467843967,-500.0,0.00016438,2]
[391283690,1760467843978,-621.11,0.00016438,2]
[391283691,1760467843988,-549.55,0.00016438,2]
[391283692,1760467843997,-500.0,0.00016438,2]
[391283693,1760467844008,-500.0,0.00016438,2]
[391283694,1760467844018,-500.0,0.00016438,2]
[391283695,1760467844027,-172.31396324,0.00016438,2]
[391283696,1760467844037,-710.02,0.00016438,2]
[391283697,1760467844047,-500.0,0.00016438,2]
[391283698,1760467844056,-1012.51,0.00016438,2]
[391283699,1760467844069,-500.0,0.00016438,2]
[391283700,1760467844079,-500.0,0.00016438,2]
[391283701,1760467844088,-500.0,0.00016438,2]
[391283702,1760467844098,-500.0,0.00016438,2]
[391283703,1760467844107,-716.89,0.00016438,2]
[391283704,1760467844116,-1191.45,0.00016438,2]
[391283705,1760467844127,-1081.54,0.00016438,2]
[391283706,1760467844137,-572.37,0.00016438,2]
[391283707,1760467844147,-500.0,0.00016438,2]
[391283708,1760467844157,-500.0,0.00016438,2]
[391283709,1760467844166,-500.0,0.00016438,2]
[391283710,1760467844177,-500.0,0.00016438,2]
[391283711,1760467844187,-500.0,0.00016438,2]
[391283712,1760467844196,-699.12,0.00016438,2]
[391283713,1760467844206,-500.0,0.00016438,2]
[391283714,1760467844216,-500.0,0.00016438,2]
[391283715,1760467844226,-597.68,0.00016438,2]
[391283716,1760467844236,-3256.3454831,0.00016438,2]
[391283717,1760467844245,-574.66,0.00016438,2]
[391283718,1760467844255,-500.0,0.00016438,2]
[391283719,1760467844265,-500.0,0.00016438,2]
[391283720,1760467844275,-500.0,0.00016438,2]
[391283721,1760467844286,-1213.77,0.00016438,2]
[391283722,1760467844296,-527.35,0.00016438,2]
[391283723,1760467844306,-500.0,0.00016438,2]
[391283724,1760467844315,-500.0,0.00016438,2]
[391283725,1760467844325,-500.0,0.00016438,2]
[391283726,1760467844335,-500.0,0.00016438,2]
[391283727,1760467844344,-859.73,0.00016438,2]
[391283728,1760467844354,-500.0,0.00016438,2]
[391283729,1760467844364,-1114.85,0.00016438,2]
[391283730,1760467844374,-500.0,0.00016438,2]
[391283731,1760467844384,-500.0,0.00016438,2]
[391283732,1760467844394,-500.0,0.00016438,2]
[391283733,1760467844404,-500.0,0.00016438,2]
[391283734,1760467844414,-500.0,0.00016438,2]
[391283735,1760467844424,-500.0,0.00016438,2]
[391283736,1760467844434,-500.0,0.00016438,2]
[391283737,1760467844443,-500.0,0.00016438,2]
[391283738,1760467844453,-500.0,0.00016438,2]
[391283739,1760467844463,-2516.02,0.00016438,2]
[391283740,1760467844472,-500.0,0.00016438,2]
[391283741,1760467844482,-500.0,0.00016438,2]
[391283742,1760467844492,-500.0,0.00016438,2]
[391283743,1760467844502,-500.0,0.00016438,2]
[391283744,1760467844511,-500.0,0.00016438,2]
[391283745,1760467844521,-607.69,0.00016438,2]
[391283746,1760467844530,-734.76,0.00016438,2]
[391283747,1760467844540,-500.0,0.00016438,2]
[391283748,1760467844549,-500.0,0.00016438,2]
[391283749,1760467844559,-1022.92,0.00016438,2]
[391283750,1760467844568,-500.0,0.00016438,2]
[391283751,1760467844578,-500.0,0.00016438,2]
[391283752,1760467844587,-500.0,0.00016438,2]
[391283753,1760467844597,-151.0,0.00016438,2]
[391283754,1760467844606,-739.01,0.00016438,2]
[391283755,1760467844616,-907.25,0.00016438,2]
[391283756,1760467844625,-500.0,0.00016438,2]
[391283757,1760467844634,-500.0,0.00016438,2]
[391283758,1760467844644,-500.0,0.00016438,2]
[391283759,1760467844653,-500.0,0.00016438,2]
[391283760,1760467844662,-500.0,0.00016438,2]
[391283761,1760467844672,-500.0,0.00016438,2]
[391283762,1760467844681,-500.0,0.00016438,2]
[391283763,1760467844690,-500.0,0.00016438,2]
[391283764,1760467844700,-500.0,0.00016438,2]
[391283765,1760467844709,-500.0,0.00016438,2]
[391283766,1760467844722,-500.0,0.00016438,2]
[391283767,1760467844731,-635.94,0.00016438,2]
[391283768,1760467844740,-1629.24,0.00016438,2]
[391283769,1760467844755,-500.0,0.00016438,2]
[391283770,1760467844765,-500.0,0.00016438,2]
[391283771,1760467844775,-500.0,0.00016438,2]
[391283772,1760467844786,-500.0,0.00016438,2]
[391283773,1760467844797,-977.88,0.00016438,2]
[391283774,1760467844807,-575.11,0.00016438,2]
[391283775,1760467844817,-500.0,0.00016438,2]
[391283776,1760467844827,-651.08,0.00016438,2]
[391283777,1760467844837,-577.65,0.00016438,2]
[391283778,1760467844848,-500.0,0.00016438,2]
[391283779,1760467844858,-500.0,0.00016438,2]
[391283780,1760467844870,-2148.03,0.00016438,2]
[391283781,1760467844880,-500.0,0.00016438,2]
[391283782,1760467844891,-1694.21,0.00016438,2]
[391283783,1760467844903,-500.0,0.00016438,2]
[391283784,1760467844916,-500.0,0.00016438,2]
[391283785,1760467844927,-500.0,0.00016438,2]
[391283786,1760467844938,-728.12,0.00016438,2]
[391283787,1760467844949,-787.18,0.00016438,2]
[391283788,1760467844961,-500.0,0.00016438,2]
[391283789,1760467844973,-174.29713808,0.00016438,2]
[391283790,1760467844984,-500.0,0.00016438,2]
[391283791,1760467844996,-1641.78,0.00016438,2]
[391283792,1760467845007,-500.0,0.00016438,2]
[391283793,1760467845018,-1019.42,0.00016438,2]
[391283794,1760467845027,-1947.9,0.00016438,2]
[391283795,1760467845038,-500.0,0.00016438,2]
[391283796,1760467845048,-805.53,0.00016438,2]
[391283797,1760467845058,-500.0,0.00016438,2]
[391283798,1760467845068,-1863.8,0.00016438,2]
[391283799,1760467845078,-500.0,0.00016438,2]
[391283800,1760467845088,-500.0,0.00016438,2]
[391283801,1760467845098,-836.51,0.00016438,2]
[391283802,1760467845108,-1148.28,0.00016438,2]
[391283803,1760467845117,-500.0,0.00016438,2]
[391283804,1760467845127,-1079.56,0.00016438,2]
[391283805,1760467845137,-1074.91,0.00016438,2]
[391283806,1760467845147,-645.28,0.00016438,2]
[391283807,1760467845163,-500.0,0.00016438,2]
[391283808,1760467845172,-151.0,0.00016438,2]
[391283809,1760467845182,-198.180624,0.00016438,2]
[391283810,1760467845191,-500.0,0.00016438,2]
[391283811,1760467845201,-500.0,0.00016438,2]
[391283812,1760467845211,-500.0,0.00016438,2]
[391283813,1760467845225,-1519.28,0.00016438,2]
[391283814,1760467845234,-632.8,0.00016438,2]
[391283815,1760467845244,-500.0,0.00016438,2]
[391283816,1760467845253,-507.23,0.00016438,2]
[391283817,1760467845263,-500.0,0.00016438,2]
[391283818,1760467845272,-699.56,0.00016438,2]
[391283819,1760467845282,-500.0,0.00016438,2]
[391283820,1760467845292,-1967.11,0.00016438,2]
[391283821,1760467845301,-500.0,0.00016438,2]
[391283822,1760467845312,-500.0,0.00016438,2]
[391283823,1760467845322,-619.96,0.00016438,2]
[391283824,1760467845331,-860.05,0.00016438,2]
[391283825,1760467845340,-500.0,0.00016438,2]
[391283826,1760467845350,-1977.44,0.00016438,2]
[391283827,1760467845359,-500.0,0.00016438,2]
[391283828,1760467845368,-500.0,0.00016438,2]
[391283829,1760467845378,-500.0,0.00016438,2]
[391283830,1760467845387,-940.64,0.00016438,2]
[391283831,1760467845397,-2025.4,0.00016438,2]
[391283832,1760467845408,-941.3,0.00016438,2]
[391283833,1760467845418,-500.0,0.00016438,2]
[391283834,1760467845428,-1599.92,0.00016438,2]
[391283835,1760467845437,-774.72,0.00016438,2]
[391283836,1760467845446,-1890.01,0.00016438,2]
[391283837,1760467845456,-500.0,0.00016438,2]
[391283838,1760467845465,-658.51,0.00016438,2]
[391283839,1760467845475,-1158.05,0.00016438,2]
[391283840,1760467845484,-500.0,0.00016438,2]
[391283841,1760467845494,-500.0,0.00016438,2]
[391283842,1760467845503,-654.33,0.00016438,2]
[391283843,1760467845512,-500.0,0.00016438,2]
[391283844,1760467845521,-655.61,0.00016438,2]
[391283845,1760467845531,-500.0,0.00016438,2]
[391283846,1760467845540,-1661.53,0.00016438,2]
[391283847,1760467845549,-500.0,0.00016438,2]
[391283848,1760467845559,-427.9118629,0.00016438,2]
[391283849,1760467845568,-631.81,0.00016438,2]
[391283850,1760467845577,-518.6,0.00016438,2]
[391283851,1760467845587,-615.06,0.00016438,2]
[391283852,1760467845596,-500.0,0.00016438,2]
[391283853,1760467845606,-500.0,0.00016438,2]
[391283854,1760467845616,-500.0,0.00016438,2]
[391283855,1760467845625,-1894.89,0.00016438,2]
[391283856,1760467845634,-595.32,0.00016438,2]
[391283857,1760467845655,-931.06,0.00016438,2]
[391283858,1760467845671,-500.0,0.00016438,2]
[391283859,1760467845681,-500.0,0.00016438,2]
[391283860,1760467845691,-863.39,0.00016438,2]
[391283861,1760467845702,-500.0,0.00016438,2]
[391283862,1760467845712,-500.0,0.00016438,2]
[391283863,1760467845727,-1012.15,0.00016438,2]
[391283864,1760467845737,-500.0,0.00016438,2]
[391283865,1760467845747,-665.8,0.00016438,2]
[391283866,1760467845756,-500.0,0.00016438,2]
[391283867,1760467845767,-834.86,0.00016438,2]
[391283868,1760467845777,-500.0,0.00016438,2]
[391283869,1760467845788,-828.73,0.00016438,2]
[391283870,1760467845799,-500.0,0.00016438,2]
[391283871,1760467845808,-500.0,0.00016438,2]
[391283872,1760467845818,-669.37,0.00016438,2]
[391283873,1760467845828,-1427.69,0.00016438,2]
[391283874,1760467845837,-985.75,0.00016438,2]
[391283875,1760467845847,-1529.3,0.00016438,2]
[391283876,1760467845857,-626.51,0.00016438,2]
[391283877,1760467845867,-638.01,0.00016438,2]
[391283878,1760467845876,-500.0,0.00016438,2]
[391283879,1760467845886,-500.0,0.00016438,2]
[391283880,1760467845896,-500.0,0.00016438,2]
[391283881,1760467845909,-610.04,0.00016438,2]
[391283882,1760467845918,-962.22,0.00016438,2]
[391283883,1760467845928,-500.0,0.00016438,2]
[391283884,1760467845938,-500.0,0.00016438,2]
[391283885,1760467845948,-500.0,0.00016438,2]
[391283886,1760467845959,-500.0,0.00016438,2]
[391283887,1760467845969,-500.0,0.00016438,2]
[391283888,1760467845979,-500.0,0.00016438,2]
[391283889,1760467845989,-1058.36,0.00016438,2]
[391283890,1760467845999,-500.0,0.00016438,2]
[391283891,1760467846009,-500.0,0.00016438,2]
[391283893,1760467846020,-1248.6,0.00016438,2]
[391283895,1760467846030,-609.72,0.00016438,2]
[391283896,1760467846041,-500.0,0.00016438,2]
[391283897,1760467846052,-643.32,0.00016438,2]
[391283898,1760467846062,-500.0,0.00016438,2]
[391283899,1760467846072,-1248.07,0.00016438,2]
[391283900,1760467846082,-3062.75,0.00016438,2]
[391283901,1760467846092,-235.79131412,0.00016438,2]
[391283902,1760467846101,-442.63032196,0.00016438,2]
[391283903,1760467846111,-500.0,0.00016438,2]
[391283904,1760467846120,-1332.51,0.00016438,2]
[391283905,1760467846130,-500.0,0.00016438,2]
[391283906,1760467846140,-500.0,0.00016438,2]
[391283909,1760467846468,-1095.05,0.00016438,2]
[391283910,1760467846478,-1090.8,0.00016438,2]
[391283911,1760467846488,-500.0,0.00016438,2]
[391283912,1760467846497,-500.0,0.00016438,2]
[391283913,1760467846507,-617.04,0.00016438,2]
[391283914,1760467846516,-301.99999987,0.00016438,2]
[391283915,1760467846526,-1140.95,0.00016438,2]
[391283916,1760467846535,-993.7,0.00016438,2]
[391283917,1760467846545,-500.0,0.00016438,2]
[391283919,1760467846555,-500.0,0.00016438,2]
[391283921,1760467846564,-500.0,0.00016438,2]
[391283923,1760467846573,-611.49,0.00016438,2]
[391283924,1760467846583,-500.0,0.00016438,2]
[391283925,1760467846592,-1445.37,0.00016438,2]
[391283926,1760467846601,-380.50794372,0.00016438,2]
[391283928,1760467846611,-500.0,0.00016438,2]
[391283930,1760467846620,-500.0,0.00016438,2]
[391283931,1760467846630,-563.32,0.00016438,2]
[391283932,1760467846639,-500.0,0.00016438,2]
[391283933,1760467846648,-1807.01,0.00016438,2]
[391283934,1760467846665,-1502.16,0.00016438,2]
[391283936,1760467846675,-500.0,0.00016438,2]
[391283938,1760467846684,-1330.56,0.00016438,2]
[391283939,1760467846694,-798.62,0.00016438,2]
[391283940,1760467846704,-560.45,0.00016438,2]
[391283941,1760467846715,-1763.11,0.00016438,2]
[391283942,1760467846732,-500.0,0.00016438,2]
[391283943,1760467846741,-500.0,0.00016438,2]
[391283944,1760467846751,-1496.59,0.00016438,2]
[391283945,1760467846761,-900.78,0.00016438,2]
[391283946,1760467846771,-600.63,0.00016438,2]
[391283947,1760467846781,-595.62844534,0.00016438,2]
[391283948,1760467846791,-659.88,0.00016438,2]
[391283949,1760467846803,-1925.21,0.00016438,2]
[391283950,1760467846812,-500.0,0.00016438,2]
[391283951,1760467846822,-564.79,0.00016438,2]
[391283952,1760467846832,-500.0,0.00016438,2]
[391283953,1760467846842,-1343.45,0.00016438,2]
[391283954,1760467846852,-500.0,0.00016438,2]
[391283955,1760467846862,-500.0,0.00016438,2]
[391283956,1760467846873,-924.25,0.00016438,2]
[391283957,1760467846883,-500.0,0.00016438,2]
[391283958,1760467846892,-193.12286051,0.00016438,2]
[391283959,1760467846902,-1465.99,0.00016438,2]
[391283960,1760467846911,-648.46,0.00016438,2]
[391283961,1760467846921,-892.02,0.00016438,2]
[391283962,1760467846930,-746.15,0.00016438,2]
[391283963,1760467846940,-500.0,0.00016438,2]
[391283964,1760467846949,-1704.56,0.00016438,2]
[391283965,1760467846959,-500.0,0.00016438,2]
[391283966,1760467846968,-500.0,0.00016438,2]
[391283967,1760467846978,-500.0,0.00016438,2]
[391283968,1760467846988,-500.0,0.00016438,2]
[391283969,1760467846998,-2127.04,0.00016438,2]
[391283970,1760467847009,-500.0,0.00016438,2]
[391283971,1760467847020,-500.0,0.00016438,2]
[391283972,1760467847030,-510.39,0.00016438,2]
[391283973,1760467847039,-500.0,0.00016438,2]
[391283974,1760467847049,-3142.57,0.00016438,2]
[391283975,1760467847059,-500.0,0.00016438,2]
[391283976,1760467847069,-500.0,0.00016438,2]
[391283977,1760467847079,-1172.2,0.00016438,2]
[391283978,1760467847088,-630.95,0.00016438,2]
[391283979,1760467847098,-1851.66,0.00016438,2]
[391283980,1760467847107,-500.0,0.00016438,2]
[391283981,1760467847117,-500.0,0.00016438,2]
[391283982,1760467847126,-950.75,0.00016438,2]
[391283983,1760467847136,-525.61,0.00016438,2]
[391283984,1760467847146,-1025.61,0.00016438,2]
[391283985,1760467847156,-1888.62,0.00016438,2]
[391283986,1760467847166,-654.15,0.00016438,2]
[391283987,1760467847175,-500.0,0.00016438,2]
[391283988,1760467847185,-1526.85,0.00016438,2]
[391283989,1760467847194,-1114.51,0.00016438,2]
[391283990,1760467847203,-1510.99,0.00016438,2]
[391283991,1760467847212,-825.23,0.00016438,2]
[391283992,1760467847222,-500.0,0.00016438,2]
[391283993,1760467847232,-500.0,0.00016438,2]
[391283994,1760467847241,-1418.22,0.00016438,2]
[391283995,1760467847251,-878.59,0.00016438,2]
[391283996,1760467847260,-500.0,0.00016438,2]
[391283997,1760467847269,-500.0,0.00016438,2]
[391283998,1760467847279,-599.93,0.00016438,2]
[391283999,1760467847288,-1814.26,0.00016438,2]
[391284000,1760467847298,-685.15,0.00016438,2]
[391284001,1760467847307,-500.0,0.00016438,2]
[391284002,1760467847316,-4698.6328197,0.00016438,2]
[391284003,1760467847326,-643.14,0.00016438,2]
[391284004,1760467847335,-500.0,0.00016438,2]
[391284005,1760467847344,-500.0,0.00016438,2]
[391284006,1760467847353,-500.0,0.00016438,2]
[391284007,1760467847362,-500.0,0.00016438,2]
[391284008,1760467847371,-500.0,0.00016438,2]
[391284009,1760467847381,-500.0,0.00016438,2]
[391284010,1760467847390,-500.0,0.00016438,2]
[391284011,1760467847400,-500.0,0.00016438,2]
[391284012,1760467847410,-500.0,0.00016438,2]
[391284013,1760467847419,-500.0,0.00016438,2]
[391284014,1760467847429,-565.94,0.00016438,2]
[391284015,1760467847438,-890.49,0.00016438,2]
[391284016,1760467847448,-889.19,0.00016438,2]
[391284017,1760467847457,-500.0,0.00016438,2]
[391284018,1760467847466,-1563.54,0.00016438,2]
[391284019,1760467847475,-500.0,0.00016438,2]
[391284020,1760467847485,-1881.99,0.00016438,2]
[391284021,1760467847494,-929.68,0.00016438,2]
[391284022,1760467847503,-500.0,0.00016438,2]
[391284023,1760467847512,-995.62,0.00016438,2]
[391284024,1760467847522,-1276.61,0.00016438,2]
[391284025,1760467847531,-500.0,0.00016438,2]
[391284026,1760467847540,-2396.21,0.00016438,2]
[391284027,1760467847550,-500.0,0.00016438,2]
[391284028,1760467847559,-500.0,0.00016438,2]
[391284029,1760467847568,-563.42,0.00016438,2]
[391284030,1760467847577,-500.0,0.00016438,2]
[391284031,1760467847586,-2782.08,0.00016438,2]
[391284032,1760467847595,-500.0,0.00016438,2]
[391284033,1760467847604,-500.0,0.00016438,2]
[391284034,1760467847614,-1167.36,0.00016438,2]
[391284035,1760467847623,-500.0,0.00016438,2]
[391284036,1760467847632,-1001.34,0.00016438,2]
[391284037,1760467847641,-500.0,0.00016438,2]
[391284038,1760467847650,-553.21,0.00016438,2]
[391284039,1760467847660,-515.46,0.00016438,2]
[391284040,1760467847669,-500.0,0.00016438,2]
[391284041,1760467847679,-500.0,0.00016438,2]
[391284042,1760467847688,-500.0,0.00016438,2]
[391284043,1760467847698,-525.58,0.00016438,2]
[391284044,1760467847707,-500.0,0.00016438,2]
[391284045,1760467847717,-500.63,0.00016438,2]
[391284046,1760467847730,-500.0,0.00016438,2]
[391284047,1760467847739,-1897.76,0.00016438,2]
[391284048,1760467847748,-1051.68,0.00016438,2]
[391284049,1760467847758,-500.0,0.00016438,2]
[391284050,1760467847768,-923.06,0.00016438,2]
[391284051,1760467847778,-1897.16,0.00016438,2]
[391284052,1760467847787,-500.0,0.00016438,2]
[391284053,1760467847799,-500.0,0.00016438,2]
[391284054,1760467847808,-500.0,0.00016438,2]
[391284055,1760467847818,-500.0,0.00016438,2]
[391284056,1760467847827,-1363.63,0.00016438,2]
[391284057,1760467847836,-1685.95,0.00016438,2]
[391284058,1760467847846,-500.0,0.00016438,2]
[391284059,1760467847855,-500.0,0.00016438,2]
[391284060,1760467847865,-2269.47,0.00016438,2]
[391284061,1760467847874,-500.0,0.00016438,2]
[391284062,1760467847884,-500.0,0.00016438,2]
[391284063,1760467847893,-1122.97,0.00016438,2]
[391284064,1760467847902,-500.0,0.00016438,2]
[391284065,1760467847912,-500.0,0.00016438,2]
[391284066,1760467847921,-500.0,0.00016438,2]
[391284067,1760467847930,-500.0,0.00016438,2]
[391284068,1760467847939,-500.0,0.00016438,2]
[391284069,1760467847948,-651.34,0.00016438,2]
[391284070,1760467847958,-500.0,0.00016438,2]
[391284071,1760467847967,-500.0,0.00016438,2]
[391284072,1760467847976,-500.0,0.00016438,2]
[391284073,1760467847985,-500.0,0.00016438,2]
[391284074,1760467847994,-500.0,0.00016438,2]
[391284075,1760467848004,-500.0,0.00016438,2]
[391284076,1760467848013,-500.0,0.00016438,2]
[391284077,1760467848022,-500.0,0.00016438,2]
[391284078,1760467848032,-500.0,0.00016438,2]
[391284079,1760467848042,-500.0,0.00016438,2]
[391284080,1760467848052,-500.0,0.00016438,2]
[391284081,1760467848061,-500.0,0.00016438,2]
[391284082,1760467848070,-500.0,0.00016438,2]
[391284083,1760467848080,-1218.1,0.00016438,2]
[391284084,1760467848089,-960.01,0.00016438,2]
[391284085,1760467848098,-500.0,0.00016438,2]
[391284086,1760467848107,-236.1522,0.00016438,2]
[391284087,1760467848116,-500.0,0.00016438,2]
[391284088,1760467848126,-500.0,0.00016438,2]
[391284089,1760467848135,-1229.08,0.00016438,2]
[391284090,1760467848144,-1839.83,0.00016438,2]
[391284091,1760467848153,-1289.27,0.00016438,2]
[391284092,1760467848163,-500.0,0.00016438,2]
[391284093,1760467848172,-533.62,0.00016438,2]
[391284094,1760467848183,-500.0,0.00016438,2]
[391284095,1760467848192,-500.0,0.00016438,2]
[391284096,1760467848201,-500.0,0.00016438,2]
[391284097,1760467848211,-2570.2,0.00016438,2]
[391284098,1760467848219,-500.0,0.00016438,2]
[391284099,1760467848230,-1332.82,0.00016438,2]
[391284100,1760467848239,-500.0,0.00016438,2]
[391284101,1760467848248,-2374.4,0.00016438,2]
[391284102,1760467848258,-500.0,0.00016438,2]
[391284103,1760467848267,-1222.51,0.00016438,2]
[391284104,1760467848276,-500.0,0.00016438,2]
[391284105,1760467848286,-1432.82,0.00016438,2]
[391284106,1760467848295,-824.02,0.00016438,2]
[391284107,1760467848304,-500.0,0.00016438,2]
[391284108,1760467848313,-500.0,0.00016438,2]